bitfinex-derivatives/quotes_SOLF0:USTF0_20250426
["timestamp","ask_amount","ask_price","bid_price","bid_amount"]
[1745677461617,12.82538986,148.41,148.34,12.82538986]
[1745677462616,6.7377,148.37,148.34,12.82538986]
[1745677464513,12.82538986,148.41,148.34,19.56438986]
[1745677464715,6.7374,148.38,148.34,19.56438986]
[1745677464915,26.437,148.42,148.34,12.82538986]
[1745677465114,1.997,148.42,148.36,6.7378]
[1745677465316,6.7368,148.39,148.37,24.44]
[1745677465621,6.7368,148.39,148.37,32.6359549]
[1745677466615,6.7364,148.4,148.37,32.6359549]
[1745677466920,6.7364,148.4,148.37,39.3736549]
[1745677467219,6.7364,148.4,148.37,32.6359549]
[1745677467621,6.736,148.41,148.37,24.44]
[1745677467818,37.24419162,148.45,148.38,12.80419162]
[1745677468019,14.87089162,148.47,148.38,12.80419162]
[1745677468318,14.87089162,148.47,148.39,6.7367]
[1745677468619,14.87089162,148.47,148.4,6.7363]
[1745677468819,6.7348,148.44,148.41,24.44]
[1745677469019,14.87089162,148.47,148.41,24.44]
[1745677470220,6.7353,148.43,148.41,24.44]
[1745677471023,6.7354,148.42,148.41,24.44]
[1745677471313,14.87089162,148.47,148.41,24.44]
[1745677472115,6.7349,148.44,148.41,24.44]
[1745677472421,6.7349,148.44,148.41,31.1758]
[1745677472921,4.0211,148.48,148.41,31.1758]
[1745677473115,4.0211,148.48,148.42,6.7353]
[1745677473321,39.15589162,148.51,148.42,12.80419162]
[1745677473822,12.80419162,148.57,148.48,12.80419162]
[1745677474013,14.76789162,148.57,148.49,24.42]
[1745677474215,6.7303,148.54,148.49,24.42]
[1745677474420,6.7303,148.54,148.5,12.80419162]
[1745677474720,6.7303,148.54,148.5,19.53569162]
[1745677474922,6.7306,148.53,148.5,12.80419162]
[1745677476919,6.7309,148.52,148.5,12.80419162]
[1745677478524,6.7306,148.53,148.5,12.80419162]
[1745677480327,6.7306,148.53,148.5,19.53599162]
[1745677480821,6.7301,148.54,148.5,19.53599162]
[1745677481428,1.9637,148.57,148.5,12.80419162]
[1745677481620,1.9637,148.57,148.52,12.80419162]
[1745677481826,24.4,148.61,148.54,12.80419162]
[1745677482025,6.7278,148.59,148.55,6.7295]
[1745677482222,30.6587,148.64,148.54,37.20419162]
[1745677482423,12.80419162,148.63,148.54,37.20419162]
[1745677482626,6.7285,148.58,148.54,37.20419162]
[1745677482927,30.6587,148.64,148.54,37.20419162]
[1745677483126,12.80419162,148.63,148.54,37.20419162]
[1745677484324,6.7285,148.58,148.54,43.93399162]
[1745677484520,12.80419162,148.63,148.54,37.20419162]
[1745677485730,12.80419162,148.63,148.54,31.1297]
[1745677485927,12.80419162,148.63,148.54,24.4]
[1745677486128,30.6587,148.64,148.54,24.4]
[1745677486327,43.46289162,148.64,148.56,6.7288]
[1745677486830,43.46289162,148.64,148.55,12.80419162]
[1745677487130,6.728,148.59,148.55,19.53359162]
[1745677487431,6.728,148.59,148.55,12.80419162]
[1745677487934,12.80419162,148.62,148.54,24.4]
[1745677488130,12.80419162,148.6,148.54,24.4]
[1745677489131,6.7294,148.56,148.54,24.4]
[1745677489826,12.80419162,148.6,148.54,31.1296]
[1745677490431,6.7287,148.57,148.54,24.4]
[1745677490828,12.80419162,148.6,148.54,24.4]
[1745677491031,6.7295,148.55,148.54,24.4]
[1745677491228,12.80419162,148.58,148.51,24.4]
[1745677491428,12.80419162,148.58,148.51,31.1313]
[1745677492031,6.7296,148.55,148.51,31.1313]
[1745677492229,12.80419162,148.58,148.51,24.4]
[1745677492426,2.0454,148.57,148.51,24.4]
[1745677492625,6.7298,148.55,148.51,24.4]
[1745677492831,6.7298,148.55,148.51,31.1309]
[1745677493230,6.7298,148.55,148.51,24.4]
[1745677493626,6.7298,148.55,148.51,31.1312]
[1745677493831,6.7301,148.54,148.51,31.1312]
[1745677494022,6.7301,148.54,148.51,24.4]
[1745677495436,6.7297,148.55,148.51,31.131]
[1745677495933,2.0454,148.57,148.51,31.131]
[1745677496435,6.7303,148.54,148.51,31.131]
[1745677497835,6.7303,148.54,148.51,24.4]
[1745677498032,2.0454,148.57,148.51,24.4]
[1745677498230,12.80419162,148.56,148.51,24.4]
[1745677498429,4.097,148.57,148.51,31.1313]
[1745677499637,8.18073565,148.55,148.51,39.31203565]
[1745677499839,6.7303,148.54,148.51,32.58073565]
[1745677500341,8.18073565,148.55,148.51,32.58073565]
[1745677500639,14.91053565,148.55,148.52,6.7309]
[1745677500830,14.91053565,148.55,148.51,32.58073565]
[1745677501041,8.18073565,148.55,148.51,32.58073565]
[1745677501738,6.7303,148.54,148.51,39.31183565]
[1745677502035,8.18073565,148.55,148.51,32.58073565]
[1745677502239,6.7301,148.54,148.51,32.58073565]
[1745677503242,6.7301,148.54,148.51,39.31193565]
[1745677503641,6.7306,148.53,148.51,32.58073565]
[1745677504846,6.7302,148.54,148.51,32.58073565]
[1745677505241,6.7302,148.54,148.51,39.31183565]
[1745677506544,6.7305,148.53,148.51,32.58073565]
[1745677506745,6.7305,148.53,148.51,24.4]
[1745677507342,6.7302,148.54,148.51,31.1313]
[1745677507551,8.18073565,148.55,148.51,32.58073565]
[1745677507846,14.91073565,148.55,148.52,6.7308]
[1745677508143,6.73,148.55,148.52,6.7308]
[1745677508347,6.73,148.55,148.52,14.91153565]
[1745677509152,8.18073565,148.58,148.53,8.18073565]
[1745677509447,8.18073565,148.6,148.55,8.18073565]
[1745677509638,2.0034,148.62,148.58,8.18073565]
[1745677509842,8.18073565,148.63,148.59,8.18073565]
[1745677510043,73.43739401,148.64,148.59,8.18073565]
[1745677510344,8.18073565,148.63,148.59,8.18073565]
[1745677510548,8.18073565,148.63,148.58,32.72073565]
[1745677510853,6.7267,148.62,148.58,39.44863565]
[1745677511151,8.18073565,148.62,148.58,24.54]
[1745677511352,6.7287,148.57,148.54,14.91053565]
[1745677511650,12.77733796,148.6,148.55,24.52]
[1745677511852,12.77733796,148.58,148.55,24.52]
[1745677512050,12.77733796,148.58,148.52,509.06]
[1745677512351,12.77733796,148.58,148.52,24.52]
[1745677513051,6.7304,148.53,148.52,24.52]
[1745677513351,24.52,148.58,148.49,24.52]
[1745677513352,12.77733796,148.54,148.49,24.52]
[1745677513652,12.77733796,148.56,148.49,24.52]
[1745677514146,12.77733796,148.56,148.49,31.2519]
[1745677514346,12.77733796,148.54,148.45,484.48]
[1745677514552,12.77733796,148.52,148.46,24.54]
[1745677514752,6.7321,148.5,148.46,31.2736]
[1745677514953,12.77733796,148.54,148.46,37.31733796]
[1745677515157,12.77733796,148.56,148.46,37.31733796]
[1745677515654,6.7312,148.52,148.48,6.7325]
[1745677516048,12.77733796,148.54,148.48,6.7325]
[1745677516649,12.77733796,148.54,148.49,6.7322]
[1745677516854,12.77733796,148.56,148.48,12.77733796]
[1745677517354,6.7309,148.53,148.49,6.7321]
[1745677517549,12.77733796,148.56,148.5,24.54]
[1745677517754,6.7311,148.52,148.5,24.54]
[1745677518654,12.77733796,148.56,148.5,24.54]
[1745677519154,12.77733796,148.54,148.5,24.54]
[1745677519557,6.7313,148.51,148.5,24.54]
[1745677519855,12.77733796,148.52,148.47,24.54]
[1745677520157,1.902,148.53,148.47,24.54]
[1745677520659,6.7316,148.51,148.47,31.2729]
[1745677521059,1.902,148.53,148.47,24.54]
[1745677521560,6.732,148.5,148.47,24.54]
[1745677522265,6.7323,148.49,148.47,24.54]
[1745677523769,6.7327,148.48,148.47,24.54]
[1745677524268,12.77733796,148.52,148.47,24.54]
[1745677524870,6.7321,148.5,148.47,24.54]
[1745677525171,12.77733796,148.52,148.47,24.54]
[1745677525469,6.7325,148.49,148.47,24.54]
[1745677527171,6.7327,148.48,148.47,24.54]
[1745677527369,14.79413796,148.52,148.44,24.54]
[1745677527870,14.79413796,148.52,148.44,31.2743]
[1745677528270,14.79413796,148.52,148.44,24.54]
[1745677528471,6.7326,148.49,148.45,6.7338]
[1745677528672,14.79413796,148.52,148.45,6.7338]
[1745677528873,14.79413796,148.52,148.44,24.54]
[1745677529075,14.79413796,148.52,148.44,37.31733796]
[1745677529370,6.732,148.5,148.44,37.31733796]
[1745677529673,1.902,148.53,148.46,12.77733796]
[1745677529975,6.7319,148.5,148.47,6.733]
[1745677531776,6.7315,148.51,148.48,6.7327]
[1745677532480,6.7315,148.51,148.47,6.733]
[1745677532679,6.7311,148.52,148.46,12.77733796]
[1745677532873,14.73973796,148.56,148.46,12.77733796]
[1745677533074,14.73973796,148.56,148.48,12.77733796]
[1745677533272,14.73973796,148.56,148.49,24.54]
[1745677533780,14.73973796,148.56,148.5,6.7318]
[1745677533978,6.7307,148.53,148.49,24.54]
[1745677534581,2.0285,148.6,148.52,12.77733796]
[1745677534880,2.0285,148.6,148.53,24.58]
[1745677535082,2.0285,148.6,148.53,31.3102]
[1745677535582,6.7281,148.59,148.53,31.3102]
[1745677535781,6.7281,148.59,148.54,6.7299]
[1745677537587,6.7282,148.58,148.54,6.7299]
[1745677538488,6.728,148.59,148.55,6.7294]
[1745677539583,6.7283,148.58,148.55,6.7294]
[1745677539977,6.7283,148.58,148.54,6.7299]
[1745677540580,6.7283,148.58,148.55,6.7295]
[1745677540781,6.7278,148.59,148.53,24.58]
[1745677541184,6.7278,148.59,148.55,6.7292]
[1745677541785,8.17740051,148.58,148.55,6.7292]
[1745677542781,10.20590051,148.6,148.55,8.17740051]
[1745677542975,8.17740051,148.6,148.56,8.17740051]
[1745677543683,14.90490051,148.6,148.56,6.7288]
[1745677545185,14.90490051,148.6,148.56,14.90620051]
[1745677547086,6.7277,148.59,148.56,14.90620051]
[1745677547288,8.17740051,148.6,148.56,14.90620051]
[1745677547589,14.90500051,148.6,148.56,14.90620051]
[1745677548289,14.90500051,148.6,148.56,6.7288]
[1745677549389,6.7277,148.59,148.56,6.7288]
[1745677550890,14.90490051,148.6,148.56,6.7288]
[1745677553496,6.7278,148.59,148.56,6.7288]
[1745677555297,14.90480051,148.6,148.56,6.7288]
[1745677555491,14.90480051,148.6,148.57,6.7286]
[1745677557405,6.7274,148.6,148.57,14.90600051]
[1745677557693,10.18250051,148.64,148.59,8.17740051]
[1745677557890,8.17740051,148.64,148.6,8.17740051]
[1745677558093,8.17740051,148.65,148.6,8.17740051]
[1745677558397,6.7257,148.64,148.61,6.7267]
[1745677559201,6.7257,148.64,148.61,14.90410051]
[1745677559505,6.7257,148.64,148.61,8.17740051]
[1745677560208,6.7257,148.64,148.61,14.90410051]
[1745677560410,8.17740051,148.62,148.57,32.75740051]
[1745677560603,8.17740051,148.6,148.57,24.58]
[1745677561005,8.17740051,148.59,148.57,24.58]
[1745677561199,8.17740051,148.58,148.54,32.73740051]
[1745677561703,14.90590051,148.58,148.55,6.7293]
[1745677562394,14.90590051,148.58,148.54,39.46720051]
[1745677562702,14.90590051,148.58,148.54,32.73740051]
[1745677563003,8.17740051,148.58,148.55,6.7293]
[1745677563302,8.17740051,148.58,148.54,32.73740051]
[1745677563604,8.17740051,148.58,148.56,6.729]
[1745677563902,14.90530051,148.59,148.56,6.729]
[1745677564805,6.7282,148.58,148.55,14.90680051]
[1745677565202,6.7282,148.58,148.55,8.17740051]
[1745677565403,8.17740051,148.59,148.55,8.17740051]
[1745677565803,10.13060051,148.61,148.57,8.17740051]
[1745677566203,8.17740051,148.6,148.56,8.17740051]
[1745677566906,8.17740051,148.6,148.55,8.17740051]
[1745677567109,8.17740051,148.58,148.54,32.73740051]
[1745677567408,8.17740051,148.57,148.54,24.56]
[1745677567604,14.90580051,148.58,148.54,31.29]
[1745677568215,6.7287,148.57,148.54,31.29]
[1745677569605,8.17740051,148.58,148.54,24.56]
[1745677570706,6.7295,148.55,148.54,24.56]
[1745677572308,1.9379,148.6,148.54,24.56]
[1745677572513,10.11530051,148.6,148.55,8.17740051]
[1745677572712,10.11530051,148.6,148.56,8.17740051]
[1745677572910,8.17740051,148.6,148.56,8.17740051]
[1745677573109,8.17740051,148.6,148.55,8.17740051]
[1745677573309,26.5132,148.61,148.55,8.17740051]
[1745677573310,8.17740051,148.59,148.55,8.17740051]
[1745677573513,14.90590051,148.58,148.54,39.46710051]
[1745677574013,6.7285,148.58,148.55,6.7292]
[1745677574214,14.90530051,148.59,148.55,14.90660051]
[1745677574614,8.17740051,148.59,148.55,14.90660051]
[1745677574918,6.7285,148.58,148.55,8.17740051]
[1745677575616,6.7286,148.57,148.55,8.17740051]
[1745677575818,8.17740051,148.59,148.55,14.90680051]
[1745677576114,8.17740051,148.6,148.55,14.90680051]
[1745677576411,8.17740051,148.59,148.55,14.90680051]
[1745677577117,6.7286,148.58,148.55,14.90680051]
[1745677578927,6.7279,148.59,148.56,6.7288]
[1745677579217,8.17740051,148.63,148.58,8.17740051]
[1745677579421,8.17740051,148.65,148.6,8.17740051]
[1745677580819,6.7264,148.62,148.6,8.17740051]
[1745677581523,6.7264,148.62,148.59,8.17740051]
[1745677582120,6.7261,148.63,148.61,8.17740051]
[1745677582328,24.56,148.7,148.62,32.73740051]
[1745677582625,6.7247,148.66,148.64,8.17740051]
[1745677582826,8.17740051,148.67,148.63,8.17740051]
[1745677583228,6.7246,148.66,148.63,8.17740051]
[1745677583925,6.7246,148.66,148.64,8.17740051]
[1745677585121,6.7246,148.66,148.62,31.2861]
[1745677585332,6.7246,148.66,148.64,8.17740051]
[1745677585929,6.725,148.65,148.64,8.17740051]
[1745677586127,8.17740051,148.68,148.63,8.17740051]
[1745677586326,10.13350051,148.71,148.67,8.17740051]
[1745677586727,1.9561,148.71,148.67,8.17740051]
[1745677587028,6.7233,148.69,148.67,8.17740051]
[1745677587232,8.17740051,148.7,148.66,32.73740051]
[1745677587529,6.7233,148.69,148.66,32.73740051]
[1745677589133,8.17740051,148.71,148.66,32.73740051]
[1745677589336,8.17740051,148.72,148.68,8.17740051]
[1745677589834,6.7226,148.71,148.68,8.17740051]
[1745677590028,8.17740051,148.72,148.68,8.17740051]
[1745677590429,6.7228,148.7,148.68,8.17740051]
[1745677590630,8.17740051,148.71,148.67,8.17740051]
[1745677590826,6.7241,148.67,148.66,24.56]
[1745677591031,8.17740051,148.67,148.6,24.54]
[1745677591232,8.17740051,148.63,148.6,24.54]
[1745677591434,6.7267,148.62,148.6,24.54]
[1745677591836,8.17740051,148.65,148.61,8.17740051]
[1745677592037,10.23810051,148.66,148.62,8.17740051]
[1745677592238,8.17740051,148.67,148.63,8.17740051]
[1745677592438,8.17740051,148.66,148.62,8.17740051]
[1745677592635,6.7257,148.64,148.62,8.17740051]
[1745677593037,6.7253,148.65,148.61,14.90420051]
[1745677593338,8.17740051,148.66,148.61,14.90420051]
[1745677593538,8.17740051,148.66,148.62,8.17740051]
[1745677593740,16.68940292,148.68,148.6,37.30400292]
[1745677593938,12.76400292,148.66,148.6,24.54]
[1745677594340,6.7265,148.62,148.6,24.54]
[1745677594931,6.7268,148.61,148.6,24.54]
[1745677595139,12.76400292,148.66,148.6,24.54]
[1745677595639,6.7262,148.63,148.6,24.54]
[1745677596841,6.7256,148.64,148.6,31.2672]
[1745677597145,6.7256,148.64,148.6,24.54]
[1745677597441,6.7256,148.64,148.6,31.2672]
[1745677597739,6.7256,148.64,148.6,24.54]
[1745677598035,6.7256,148.64,148.6,31.2671]
[1745677598939,6.7256,148.64,148.61,6.7268]
[1745677600647,6.7256,148.64,148.6,31.2671]
[1745677600842,12.76400292,148.66,148.6,24.54]
[1745677601343,12.76400292,148.64,148.6,24.54]
[1745677601843,12.76400292,148.66,148.6,24.54]
[1745677602142,16.68940292,148.68,148.6,24.54]
[1745677602744,6.7253,148.65,148.61,6.7265]
[1745677602935,6.7253,148.65,148.6,24.54]
[1745677603447,12.76400292,148.68,148.63,6.7259]
[1745677603641,24.54,148.69,148.63,6.7259]
[1745677603842,12.76400292,148.69,148.64,24.86]
[1745677604052,2.0607,148.71,148.65,6.7249]
[1745677604053,14.82470292,148.71,148.65,6.7249]
[1745677604345,2.0607,148.71,148.64,37.62400292]
[1745677604745,2.0607,148.71,148.66,6.7243]
[1745677605046,2.0607,148.71,148.64,37.62400292]
[1745677605245,6.7235,148.69,148.65,6.7247]
[1745677605445,14.82470292,148.71,148.64,24.86]
[1745677606251,6.7243,148.67,148.64,31.5853]
[1745677606445,14.82470292,148.71,148.64,24.86]
[1745677607250,6.7235,148.69,148.66,6.7245]
[1745677607551,2.0607,148.71,148.66,6.7245]
[1745677607749,6.7227,148.7,148.67,6.7239]
[1745677608049,6.7227,148.7,148.68,24.86]
[1745677608454,6.7225,148.71,148.68,31.5836]
[1745677608648,39.68160292,148.75,148.68,24.86]
[1745677608943,6.7227,148.71,148.68,24.86]
[1745677609149,12.76400292,148.73,148.68,24.86]
[1745677609544,39.68160292,148.75,148.68,24.86]
[1745677610252,6.7232,148.69,148.68,24.86]
[1745677610750,6.7229,148.7,148.68,24.86]
[1745677610951,39.68160292,148.75,148.68,24.86]
[1745677611656,6.7226,148.71,148.68,24.86]
[1745677612855,6.722,148.72,148.68,31.5834]
[1745677614058,6.7216,148.73,148.69,6.7229]
[1745677614557,6.7214,148.73,148.69,6.7231]
[1745677614856,6.7214,148.73,148.68,37.62400292]
[1745677615058,6.7214,148.73,148.7,6.7227]
[1745677615458,6.7219,148.72,148.68,37.62400292]
[1745677615762,6.7219,148.72,148.7,8.160233]
[1745677616265,8.160233,148.74,148.69,6.7229]
[1745677616266,6.7223,148.71,148.69,8.160233]
[1745677616862,8.160233,148.73,148.69,8.160233]
[1745677617162,8.160233,148.74,148.69,8.160233]
[1745677617365,6.7221,148.72,148.69,14.883233]
[1745677619469,6.7216,148.73,148.69,14.883233]
[1745677619669,2.0576,148.75,148.7,14.882933]
[1745677619867,8.160233,148.74,148.7,8.160233]
[1745677620069,6.7217,148.73,148.69,6.7229]
[1745677620271,8.160233,148.74,148.7,8.160233]
[1745677620466,6.7221,148.72,148.69,8.160233]
[1745677621170,6.7216,148.73,148.69,8.160233]
[1745677621469,6.7216,148.73,148.7,6.7225]
[1745677622063,8.160233,148.74,148.7,14.882733]
[1745677622268,6.7211,148.74,148.71,6.7222]
[1745677622469,14.881333,148.74,148.71,6.7222]
[1745677622670,8.160233,148.74,148.7,8.160233]
[1745677622869,6.7215,148.73,148.7,14.882633]
[1745677624072,6.7221,148.72,148.69,6.7231]
[1745677624367,8.160233,148.73,148.69,8.160233]
[1745677624570,2.0576,148.75,148.69,8.160233]
[1745677624766,6.7213,148.74,148.71,6.7221]
[1745677625372,6.7214,148.73,148.7,14.882833]
[1745677625866,6.7211,148.74,148.7,8.160233]
[1745677626071,14.881333,148.74,148.71,6.7223]
[1745677626273,8.160233,148.74,148.7,8.160233]
[1745677626575,8.160233,148.74,148.68,24.86]
[1745677626872,14.881333,148.74,148.7,14.882533]
[1745677627273,6.7211,148.74,148.71,8.160233]
[1745677627573,8.160233,148.75,148.71,8.160233]
[1745677627873,8.160233,148.76,148.71,8.160233]
[1745677628073,8.160233,148.76,148.68,24.86]
[1745677628074,8.160233,148.75,148.72,8.160233]
[1745677628268,8.160233,148.77,148.73,8.160233]
[1745677628971,6.7203,148.76,148.73,14.881333]
[1745677629173,6.7203,148.76,148.73,8.160233]
[1745677629576,8.160233,148.77,148.72,32.980233]
[1745677629773,8.160233,148.75,148.72,32.980233]
[1745677630272,14.880933,148.75,148.72,39.701933]
[1745677631079,6.7207,148.75,148.72,31.5417]
[1745677631379,14.881633,148.73,148.65,486.0641]
[1745677631577,8.160233,148.69,148.68,24.82]
[1745677632771,14.883433,148.69,148.68,24.82]
[1745677635168,14.883133,148.7,148.68,24.82]
[1745677635380,8.160233,148.72,148.68,24.82]
[1745677635671,24.86,148.78,148.68,24.82]
[1745677635672,8.160233,148.73,148.68,32.980233]
[1745677635880,8.160233,148.74,148.69,8.160233]
[1745677636079,8.160233,148.75,148.71,8.160233]
[1745677636280,6.7209,148.75,148.72,39.702033]
[1745677636476,6.7209,148.75,148.72,32.980233]
[1745677637383,8.160233,148.76,148.72,32.980233]
[1745677637679,8.160233,148.77,148.72,39.702033]
[1745677637980,8.160233,148.77,148.72,31.5418]
[1745677638183,8.160233,148.77,148.72,39.702033]
[1745677638982,6.7202,148.76,148.72,39.702033]
[1745677639182,6.7202,148.76,148.73,6.7214]
[1745677639485,6.7202,148.76,148.73,14.881633]
[1745677639684,8.160233,148.77,148.73,8.160233]
[1745677639982,8.160233,148.77,148.72,39.701933]
[1745677640381,6.7208,148.75,148.72,24.82]
[1745677642181,8.160233,148.74,148.72,24.82]
[1745677642385,8.160233,148.73,148.72,24.82]
[1745677642986,14.881633,148.73,148.72,24.82]
[1745677644386,6.7214,148.73,148.72,24.82]
[1745677655593,8.160233,148.76,148.72,24.82]
[1745677655998,8.160233,148.75,148.72,24.82]
[1745677656392,30.8575,148.81,148.72,24.82]
[1745677656596,8.160233,148.75,148.72,24.82]
[1745677657200,8.160233,148.74,148.72,24.82]
[1745677657401,8.160233,148.73,148.65,510.9241]
[1745677657598,8.160233,148.68,148.65,508.86]
[1745677657798,8.160233,148.66,148.62,24.86]
[1745677657996,8.160233,148.65,148.62,24.86]
[1745677658396,8.160233,148.66,148.62,24.86]
[1745677658798,14.885133,148.66,148.62,31.5862]
[1745677660097,8.160233,148.63,148.62,24.86]
[1745677660697,8.160233,148.63,148.59,24.86]
[1745677660899,8.160233,148.62,148.59,24.86]
[1745677661299,14.886933,148.62,148.59,24.86]
[1745677661701,6.7267,148.62,148.59,24.86]
[1745677661999,6.7261,148.63,148.59,31.5877]
[1745677662404,6.7265,148.62,148.59,31.5877]
[1745677662604,6.7265,148.62,148.59,24.86]
[1745677663001,6.7261,148.63,148.59,31.5874]
[1745677664304,2.0158,148.69,148.59,31.5874]
[1745677664305,12.76950707,148.67,148.59,24.86]
[1745677664906,6.7259,148.63,148.6,6.7271]
[1745677665098,6.7259,148.63,148.59,24.86]
[1745677665404,6.7259,148.63,148.59,31.5875]
[1745677666203,6.7264,148.62,148.59,31.5875]
[1745677666702,12.76950707,148.65,148.6,6.7272]
[1745677667905,12.76950707,148.65,148.59,31.5877]
[1745677668406,6.7263,148.63,148.59,31.5877]
[1745677668705,6.7263,148.63,148.6,6.7273]
[1745677670606,12.76950707,148.67,148.62,6.7264]
[1745677670801,12.76950707,148.67,148.63,24.88]
[1745677671715,6.7253,148.65,148.63,24.88]
[1745677673206,6.7247,148.66,148.63,31.6059]
[1745677674210,6.7246,148.66,148.63,31.6059]
[1745677674909,6.7243,148.67,148.63,31.6059]
[1745677675208,6.7243,148.67,148.64,6.7254]
[1745677675410,6.7226,148.71,148.64,12.76950707]
[1745677675608,6.7226,148.71,148.66,12.76950707]
[1745677675807,12.76950707,148.75,148.69,6.7229]
[1745677677216,6.7218,148.73,148.69,6.7229]
[1745677678515,6.7218,148.72,148.69,6.7229]
[1745677679618,6.7218,148.72,148.67,24.88]
[1745677679822,6.7224,148.71,148.68,6.7235]
[1745677680022,12.76950707,148.75,148.68,6.7235]
[1745677680321,6.7221,148.72,148.68,6.7235]
[1745677682022,12.76950707,148.75,148.67,24.88]
[1745677682224,37.64950707,148.77,148.68,12.76950707]
[1745677682523,6.7212,148.74,148.7,6.7225]
[1745677683022,37.64950707,148.77,148.7,6.7225]
[1745677683526,37.64950707,148.77,148.71,6.7223]
[1745677683820,8.1582187,148.76,148.71,33.0382187]
[1745677684025,6.7208,148.75,148.72,8.1582187]
[1745677686021,6.721,148.74,148.71,39.7603187]
[1745677687027,6.721,148.74,148.71,33.0382187]
[1745677687221,6.721,148.74,148.71,24.88]
[1745677689125,8.1582187,148.73,148.71,24.88]
[1745677689427,6.1478,148.79,148.7,8.1582187]
[1745677689428,8.1582187,148.74,148.7,8.1582187]
[1745677689629,33.1582187,148.76,148.71,8.1582187]
[1745677689829,6.7211,148.74,148.71,8.1582187]
[1745677691827,6.7214,148.73,148.71,8.1582187]
[1745677692330,8.1582187,148.75,148.71,8.1582187]
[1745677692527,6.7211,148.74,148.71,8.1582187]
[1745677694935,6.7215,148.73,148.71,8.1582187]
[1745677695630,8.1582187,148.75,148.71,14.8803187]
[1745677695830,8.1582187,148.76,148.71,14.8803187]
[1745677696137,6.721,148.74,148.71,14.8803187]
[1745677698235,6.7206,148.75,148.72,6.7218]
[1745677698435,14.8788187,148.75,148.72,6.7218]
[1745677698935,14.8781187,148.77,148.73,8.1582187]
[1745677699132,8.1582187,148.77,148.73,8.1582187]
[1745677699328,8.1582187,148.76,148.72,33.1582187]
[1745677699735,6.7205,148.75,148.72,39.8798187]
[1745677700034,8.1582187,148.75,148.72,25.0]
[1745677701536,14.8790187,148.75,148.72,25.0]
[1745677701838,31.1478,148.79,148.72,33.1582187]
[1745677702031,31.1478,148.79,148.73,8.1582187]
[1745677702032,8.1582187,148.77,148.73,8.1582187]
[1745677702231,14.8780187,148.77,148.73,8.1582187]
[1745677702440,14.8780187,148.77,148.73,14.8792187]
[1745677702840,6.7198,148.77,148.73,8.1582187]
[1745677703041,6.72,148.76,148.73,8.1582187]
[1745677704238,6.72,148.76,148.73,14.8794187]
[1745677704537,6.72,148.76,148.73,8.1582187]
[1745677704735,8.1582187,148.75,148.72,25.0]
[1745677704938,8.1582187,148.74,148.72,25.0]
[1745677705241,14.8790187,148.75,148.72,25.0]
[1745677705433,6.7208,148.75,148.72,25.0]
[1745677707043,6.7208,148.75,148.72,31.7217]
[1745677708143,14.8782187,148.77,148.72,33.1582187]
[1745677708343,8.1582187,148.77,148.72,33.1582187]
[1745677708737,6.7203,148.76,148.73,6.7211]
[1745677708938,14.8785187,148.76,148.73,6.7211]
[1745677709141,14.8785187,148.76,148.72,33.1582187]
[1745677709337,14.8785187,148.76,148.72,39.8799187]
[1745677710041,14.8785187,148.76,148.73,6.7214]
[1745677711946,8.1582187,148.75,148.72,25.0]
[1745677712942,14.8789187,148.75,148.72,25.0]
[1745677713141,8.1582187,148.74,148.72,25.0]
[1745677713337,14.8795187,148.74,148.72,25.0]
[1745677714648,8.1582187,148.74,148.72,25.0]
[1745677716151,8.1582187,148.74,148.72,31.7217]
[1745677716351,14.8789187,148.75,148.72,31.7217]
[1745677717453,6.721,148.74,148.72,25.0]
[1745677717847,4.0851,148.79,148.72,25.0]
[1745677718150,12.2433187,148.79,148.75,8.1582187]
[1745677718345,6.7193,148.78,148.74,14.8791187]
[1745677718551,8.1582187,148.78,148.74,6.7209]